Cogmind - Beta 10.2 @@@ ROGUE MODE // 2021.02.06 @ 14:17:10 Player: TotallyRasta Result: Destroyed by S-10 Pest with Light Assault Rifle Performance ------------- Evolutions (1) 500 Regions Visited (2) 400 Robots Destroyed (15) 75 Value Destroyed (330) 330 Prototype IDs (0) 0 Alien Tech Used (0) 0 Bonus (0) 0 TOTAL SCORE: 1305 Bonus ------- None Cogmind --------- Core Integrity 0/400 Matter 290/300 Energy 100/100 System Corruption 1% Temperature Cool (0) Movement Rolling (110) Ox3 Location -9/Materials Parts ------- > --- POWER (1) -------- (None) > --- PROPULSION (2) --- Wheel Compact Wheel > --- UTILITY (2) ------ High-capacity Storage Unit Weapon Shielding > --- WEAPON (4) ------- (None) > --- INVENTORY (12) --- Aluminum Leg Aluminum Leg Wheel Melee Analysis Suite Improved Utility Shielding Improved Utility Shielding Peak State ------------ > --- POWER ------------ Light Ion Engine > --- PROPULSION ------- Compact Wheel Armored Wheel > --- UTILITY ---------- High-capacity Storage Unit Weapon Shielding > --- WEAPON ----------- Light Cannon Mace > --- INVENTORY -------- Light Ion Engine Wheel Wheel Compact Wheel Weapon Shielding [Rating: 9] Favorites ----------- Power Light Ion Engine Engine Light Ion Engine Propulsion Compact Wheel Leg Aluminum Leg Wheel Compact Wheel Utility Weapon Shielding Storage High-capacity Storage Unit Protection Weapon Shielding Weapon EM Pulse Gun Energy Gun EM Pulse Gun Ballistic Cannon Light Cannon Impact Weapon Mace Build | -11 -10 -9 ------- Run | Scr Mat Mat Slots Evolved 2 | . . 2 Power . | . . . Propulsion . | . . . Utility . | . . . Weapon 2 | . . 2 Parts Attached 23 | 7 8 8 Power 3 | 1 1 1 Engine 3 | 1 1 1 Core . | . . . Reactor . | . . . Propulsion 10 | 3 2 5 Treads . | . . . Leg 3 | 1 . 2 Wheel 7 | 2 2 3 Hover . | . . . Flight . | . . . Utility 5 | 1 3 1 Device . | . . . Storage 2 | 1 1 . Processor . | . . . Hackware . | . . . Protection 3 | . 2 1 Artifact . | . . . Weapon 5 | 2 2 1 Energy Gun 3 | 2 1 . Energy Cannon . | . . . Ballistic Gun . | . . . Ballistic Cannon 1 | . 1 . Launcher . | . . . Special Weapon . | . . . Impact Weapon 1 | . . 1 Slashing Weapon . | . . . Piercing Weapon . | . . . Special Melee Weapon . | . . . Unidentified Prototypes . | . . . Parts Lost 11 | . 4 7 Power 2 | . . 2 Propulsion 3 | . 1 2 Utility 1 | . . 1 Weapon 5 | . 3 2 Highest Loss Streak 4 | . 3 4 Average Slot Usage (%) 75 | . 91 59 Engine 9 | . 14 4 Wheel 23 | . 26 20 Storage 12 | . 14 11 Protection 11 | . 11 10 Energy Gun 9 | . 18 . Ballistic Cannon 5 | . 5 5 Impact Weapon 3 | . . 6 Naked Turns . | . . . Heaviest Build 41 | 11 40 41 Greatest Support 32 | 32 32 28 Greatest Overweight (x) 3 | 2 3 3 Average Overweight (x) 1 | . . 1 Largest Inventory Capacity 12 | 6 12 12 Average Capacity 10 | 5 10 12 Most Carried 6 | 1 4 6 Average Carried 2 | . 2 3 Final Capacity 12 | 6 12 12 Final Carried 6 | . 4 6 Class Distribution -------------------- 100% | Mutant Dominant Class ---------------- Mutant | -10/Materials Mutant | -9/Materials Resources | -11 -10 -9 ----------- Run | Scr Mat Mat Matter Collected 443 | 56 302 85 Remotely . | . . . Salvage Created 475 | . 360 115 Parts 25 | . 22 3 Haulers Intercepted . | . . . Recyclers Shooed 1 | . 1 . Parts Field Recycled . | . . . Retrieved Matter . | . . . Parts Self-Destructed . | . . . Prevented . | . . . Kills | -11 -10 -9 ------- Run | Scr Mat Mat Combat Hostiles Destroyed 10 | . 7 3 Melee 2 | . . 2 Guns 4 | . 4 . Cannons 3 | . 2 1 AOE 1 | . 1 . Classes Destroyed 6 | . 5 1 Worker 3 | . 3 . Recycler 1 | . 1 . Watcher 1 | . 1 . Swarmer 3 | . 3 . Grunt 6 | . 4 2 Sentry 1 | . . 1 Best Kill Streak 6 | . 6 1 Combat Bots Only 4 | . 4 1 Max Kills in Single Turn 2 | . 2 1 Gunslinging . | . . . Exploded 1 | . 1 . Melee 1 | . . 1 Uniques/NPCs Destroyed . | . . . Combat | -11 -10 -9 -------- Run | Scr Mat Mat Damage Taken 1276 | . 335 941 Core 470 | . 70 400 Absorbed by Shields . | . . . Core Remaining (%) 86 | 100 72 . Volleys Fired 37 | . 20 17 Largest 2 | . 2 1 Hottest 80 | . 80 35 Shots Fired 50 | . 33 17 Gun 26 | . 26 . Cannon 24 | . 7 17 Launcher . | . . . Special . | . . . Kinetic 24 | . 7 17 Thermal 7 | . 7 . Explosive . | . . . Electromagnetic 19 | . 19 . Robot Hit Streak 8 | . 6 8 Robot Miss Streak 2 | . 2 2 Penetration Max . | . . . Secondary Targets . | . . . Shots Hit Robots 57 | . 23 34 Core Hits 24 | . 15 9 Critical Hits . | . . . Critical Kills . | . . . Critical Parts Destroyed . | . . . Melee Attacks 26 | . . 26 Impact 26 | . . 26 Slashing . | . . . Piercing . | . . . Sneak Attacks . | . . . Combat Hostiles . | . . . Follow-up Attacks . | . . . Damage Inflicted 1154 | . 469 685 Guns 190 | . 190 . Cannons 367 | . 126 241 Explosions 153 | . 153 . Melee 418 | . . 418 Ramming 26 | . . 26 Kinetic 367 | . 126 241 Thermal 195 | . 195 . Explosive . | . . . Electromagnetic 148 | . 148 . Impact 418 | . . 418 Slashing . | . . . Piercing . | . . . Highest Corruption 1 | . . 1 Average Corruption 1 | . . 1 Corruption Purged . | . . . Overload Shots . | . . . Overflow Damage 15 | . . 15 Projectiles . | . . . Explosions . | . . . Melee 15 | . . 15 Knockbacks 5 | . 4 1 Impact . | . . . Kinetic 4 | . 3 1 Secondary 1 | . 1 . Self-Inflicted Damage 47 | . 36 11 Shots 1 | . 1 . Rammed 9 | . . 9 Targets Rammed 9 | . . 9 Kicked . | . . . Crushed . | . . . Highest Temperature 87 | . 87 4 Average Temperature 30 | . 32 3 Received Heat Transfer 414 | . 87 327 Siege Activations . | . . . Robots Corrupted . | . . . Combat Hostiles . | . . . Parts Fried . | . . . Impact Corruptions 2 | . . 2 Robots Melted . | . . . Combat Hostiles . | . . . Parts Melted 1 | . . 1 Heat Transferred 400 | . 400 . Parts Sabotaged . | . . . Parts Stolen . | . . . Parts Stripped . | . . . Power Chain Reactions 3 | . 3 . Missiles Intercepted . | . . . Alert | -11 -10 -9 ------- Run | Scr Mat Mat Peak Influence 242 | . 242 142 Initial 102 | . . 102 Average 100 | . 102 117 Maximum Alert Level 1 | . 1 . Low Security (%) 95 | 100 91 100 Level 1 4 | . 8 . Level 2 . | . . . Level 3 . | . . . Level 4 . | . . . Level 5 . | . . . High Security . | . . . Max Security . | . . . Squads Dispatched 1 | . . 1 Investigation . | . . . Extermination . | . . . Reinforcement 1 | . . 1 Assault . | . . . Garrison . | . . . Intercept . | . . . Construction Impeded . | . . . Haulers Reinforced . | . . . Stealth | -11 -10 -9 --------- Run | Scr Mat Mat Distress Signals . | . . . Communications Jammed . | . . . Distress Signals . | . . . Times Spotted 24 | . 12 12 Peak Tracking Total 11 | . 4 11 Tactical Retreats 3 | . 3 . Traps | -11 -10 -9 ------- Run | Scr Mat Mat Traps Triggered . | . . . Indirectly . | . . . Trap Hack Attempts . | . . . Triggered . | . . . Disarmed 2 | . 2 . Reprogrammed . | . . . Reused . | . . . Traps Extracted . | . . . Installed . | . . . Triggered . | . . . Machines | -11 -10 -9 ---------- Run | Scr Mat Mat Machines Disabled . | . . . Max in Single Turn . | . . . Machines Sabotaged . | . . . Garrisons Compromised . | . . . Overloaded Fab Kills . | . . . Fab Network Shutdowns . | . . . Hacking | -11 -10 -9 --------- Run | Scr Mat Mat Machines Accessed 1 | . 1 . Terminals 1 | . 1 . Fabricators . | . . . Repair Stations . | . . . Recycling Units . | . . . Scanalyzers . | . . . Garrison Access . | . . . Total Hacks 2 | . 2 . Successful 2 | . 2 . Failed . | . . . Catastrophic . | . . . Database Lockouts . | . . . Manual . | . . . Terminals 2 | . 2 . Fabricators . | . . . Repair Stations . | . . . Recycling Units . | . . . Scanalyzers . | . . . Garrison Access . | . . . Terminal Hacks 2 | . 2 . Disarm Traps 1 | . 1 . Hauler Manifests 1 | . 1 . Fabricator Hacks . | . . . Repair Station Hacks . | . . . Recycling Unit Hacks . | . . . Scanalyzer . | . . . Garrison Access Hacks . | . . . Unauthorized Hacks . | . . . Terminals . | . . . Fabricators . | . . . Repair Stations . | . . . Recycling Units . | . . . Scanalyzers . | . . . Garrison Access . | . . . Data Cores Recovered . | . . . Used . | . . . Hacking Detections 1 | . 1 . Full Trace Events . | . . . Feedback Events . | . . . Feedback Blocked . | . . . Robot Schematics Acquired . | . . . Robots Built . | . . . Matter . | . . . Time . | . . . Total Robot Build Rating . | . . . Part Schematics Acquired . | . . . Parts Built . | . . . Matter . | . . . Time . | . . . Total Part Build Rating . | . . . Parts Repaired . | . . . Time . | . . . Parts Recycled . | . . . Recycled Matter . | . . . Retrieved Matter . | . . . Retrieved Components . | . . . Parts Scanalyzed . | . . . Part Schematics Acquired . | . . . Parts Damaged . | . . . Bothacking | -11 -10 -9 ------------ Run | Scr Mat Mat Used RIF Installer . | . . . Robots Hacked . | . . . Non-combat . | . . . Combat . | . . . Robot Hacks Applied . | . . . Relay Couplers Released . | . . . Robots Rewired . | . . . Allies Hacked . | . . . Hacks Repelled . | . . . Allies | -11 -10 -9 -------- Run | Scr Mat Mat Total Allies . | . . . Largest Group . | . . . Highest-Rated Group . | . . . Highest-Rated Ally . | . . . Total Orders . | . . . Ally Attacks . | . . . Total Damage . | . . . Kills . | . . . Allies Corrupted . | . . . Allies Melted . | . . . Intel | -11 -10 -9 ------- Run | Scr Mat Mat Robot Analysis Total . | . . . Derelict Logs Recovered . | . . . Drone Launches . | . . . Drone Recoveries . | . . . Exploration | -11 -10 -9 ------------- Run | Scr Mat Mat Turns Passed 610 | 48 287 275 Spaces Moved 334 | 32 203 99 Core 8 | 8 . . Treads . | . . . Legs 16 | 5 . 11 Wheels 310 | 19 203 88 Hover . | . . . Flight . | . . . Fastest Speed 50 | 50 100 100 Average Speed 107 | 113 101 117 Slowest Speed 210 | 150 110 210 Overloaded Moves . | . . . Propulsion Burnouts . | . . . Robots Hopped . | . . . Cave-ins Triggered . | . . . Exploration Rate (%) 18 | 3 41 10 Regions Visited 2 Branch Regions . Pre-discovered Areas . | . . . Known Exits Taken . | . . . Unknown Exits Taken 2 | 1 1 . Scrap Searched . | . . . Spaces Dug . | . . . Terrain Destroyed 8 | . 8 . Melee . | . . . Projectile . | . . . AOE 8 | . 8 . Terrain Rammed . | . . . Walls Destroyed . | . . . Machines Disabled . | . . . Actions | -11 -10 -9 --------- Run | Scr Mat Mat Total 486 | 40 247 199 Wait 49 | . 13 36 Move 332 | 31 202 99 Hop . | . . . Pick Up 6 | 1 2 3 Fast Attach 12 | 6 4 2 Attach 4 | . . 4 Detach 1 | . . 1 Swap 7 | 1 4 2 Drop 3 | 1 2 . Fire 37 | . 20 17 Melee 26 | . . 26 Ram 9 | . . 9 Kick . | . . . Crush . | . . . Escape Stasis . | . . . Rewire . | . . . Trap . | . . . Miscellaneous . | . . . Route ------- -11/Scrapyard -10/Materials -9/Materials (discovered 1 exit: [*Sto]) History --------- Turn | Location | Event 27 | -11/Scrapyard | Discovered new exit (range 15) 49 | -11/Scrapyard | Entered Materials 220 | -10/Materials | Lost 3 parts (1n2w) 264 | -10/Materials | Discovered new exit (range 15) 305 | -10/Materials | Build established: Mutant 336 | -10/Materials | Entered another Materials area 336 | -9/Materials | Evolved 2 slots: Weapon x2 378 | -9/Materials | Discovered new exit (range 14) 474 | -9/Materials | Core integrity fell below 50% 506 | -9/Materials | Lost 4 parts (2p1n1w) 581 | -9/Materials | Lost 3 parts (1n1u1w) 604 | -9/Materials | Core integrity fell below 20% 611 | -9/Materials | Destroyed by S-10 Pest with Light Assault Rifle Last Messages --------------- 00545_ Slammed into G-34 Mercenary. 00546_ Destabilizing: System corrupted (+1). 00546_ G-34 Mercenary misfires. 00547_ Slammed into G-34 Mercenary. 00550_ Arm. Wheel destroyed. 00551_ Slammed into G-34 Mercenary. 00552_ G-34 Mercenary IFF system glitched. 00553_ Slammed into G-34 Mercenary. 00554_ Sml. Laser melted. 00554_ G-34 Mercenary destroyed. 00557_ Acquired Aluminum Leg. 00562_ Acquired 20 matter. 00565_ K-01 Serf collects debris. 00594_ K-01 Serf cleans the Terminal. 00594_ ALERT: Hostiles spotted, dispatching reinforcements to Terminal M010. 00597_ K-01 Serf cleans the Terminal. 00602_ K-01 Serf collects debris. 00605_ Acquired Melee Analysis Suite. 00607_ Acquired Imp. Utility Shielding. Map ----- +----------------------------------------------------+ | | | | | | | | | | | | | | | | | ?????????????????????????????????????????????????? | | ?????????????????????????????????????????????????? | | ?????????????????????????????????????????????????? | | ?????????????????????????????????????????????????? | | ?????????????????????????????????????????????????? | | ?????????????????????????????????????????????????? | | ?????????????????????????????????????????????????? | | ?????????????????????????????????????????????????? | | ?????????????????????????????????????????????????? | | ?????????????????????????????????????????????????? | | ?????????????????????????????????????????????????? | | ?????????????????????????????????????????????????? | | ?????????????????????????????????????????????????? | | ?????????????????????????????????????????????????? | | ?????????????????????########????????????????????? | | ?????????????????????#!!!!!!#????????????????????# | | ?????????????????????#!! !#????????????????????# | | ?????????????????????# @ #????????????????????# | | ?????????????????????### ##???????????????????# | | ???????????????????????#sgs ##################### | | ??????????????????###### gs | | ?????????????? / Y < | | ????????????? ""#### us | | ???????????????????????# ##########+########## | | ???????????????????????###+###???# #??# | | ????????????????????????? ?????# #??# | | ???????????????????????? ""?????# #??# | | ???????????????????????? ""?????# #### | | ??????????????????????? ""?????# + | | ?????????????????????? ??????################# | | ??????????????????????#+##???????????????????????# | | ?????????????????????????????????????????????????# | | ?????????????????????????????????????????????????# | | ?????????????????????????????????????????????????# | | ????????????????????????????????????????????????? | | ?????????????????????????????????????????????????# | | ?????????????????????????????????????????????????# | | ?????????????????????????????????????????????????# | | ?????????????????????????????????????????????????? | | ?????????????????????????????????????????????????? | | ?????????????????????????????????????????????????? | | ?????????????????????????????????????????????????? | +----------------------------------------------------+ Best States ------------- Heat Dissipation 28 Energy Generation 10 Energy Capacity 125 Matter Stores 300 Matter Capacity 300 Sight Range 16 Terrain Scan Density 10 Weapon Shielding 33 Evasion (%) 40 Item Schematics ----------------- None Robot Schematics ------------------ None Fabricated ------------ Nothing Alien Tech Used ----------------- None Achievements -------------- None Challenges ------------ None Game ------ Seed LegAlphaSlayer Manual? 0 Play Time 00:09:44 Cumulative 93.5 hours Start 2021.02.06 @ 14:09:30 End 2021.02.06 @ 14:17:10 Sessions 1 Manual Loads 0 Difficulty Rogue Special Mode None Game No. 113 Rogue 113 Adventurer 0 Explorer 0 Win Type - Total 0 Types 0/0/0/0/0/0/0/0/0 Lore% 53 Gallery% 57 Achievement% 44 Wizard Run 0 Options --------- ASCII 0 Keyboard 1 Movement Numpad Keybinds 0 Fullscreen 1 Font 18/SmallcapsGlow Map View 76x50 Tactical HUD 1 Map Filters NONE Filters NONE Steam 1 RUN: ed433995-fce7-42a1-b062-f2a2ceb1567a